bitfinex/quotes_ETHUSD_20250520
["timestamp","ask_amount","ask_price","bid_price","bid_amount"]
[1747729572203,4.74832591,2527.2,2527.1,0.05]
[1747729572508,3.9569484,2527.2,2527.1,0.05]
[1747729575366,3.9569484,2527.2,2527.1,7.894]
[1747729579395,3.9569484,2527.2,2527.1,0.05]
[1747729587594,4.5069484,2527.2,2527.1,0.05]
[1747729588310,28.22303632,2527.2,2527.1,0.05]
[1747729588607,31.44102262,2527.2,2527.1,0.05]
[1747729599575,3.95851476,2526.2,2526.1,7.884]
[1747729599775,3.95851476,2526.2,2526.1,0.05]
[1747729599776,12.50851476,2526.2,2526.1,0.05]
[1747729599981,22.46529604,2526.2,2526.1,0.05]
[1747729602823,21.91529604,2526.2,2526.1,0.05]
[1747729603740,3.95851476,2526.2,2526.1,0.05]
[1747729603938,3.95851476,2526.2,2526.1,0.89556048]
[1747729610035,3.95851476,2526.2,2526.1,17.98556048]
[1747729612135,3.95851476,2526.2,2526.1,17.14]
[1747729612535,11.95851476,2526.2,2526.1,17.14]
[1747729613037,11.95851476,2526.2,2526.1,24.974]
[1747729615011,12.50851476,2526.2,2526.1,17.14]
[1747729615336,12.50851476,2526.2,2526.1,18.14]
[1747729615537,14.31003647,2526.2,2526.1,18.14]
[1747729616542,14.31003647,2526.2,2526.1,1.05]
[1747729618544,24.26681775,2526.2,2526.1,1.05]
[1747729633651,25.81512439,2526.2,2526.1,1.05]
[1747729634173,22.46529604,2526.2,2526.1,1.05]
[1747729634359,13.91529604,2526.2,2526.1,8.872]
[1747729635734,16.01360268,2526.2,2526.1,1.05]
[1747729635939,14.46529604,2526.2,2526.1,1.05]
[1747729638939,13.91529604,2526.2,2526.1,1.05]
[1747729639553,16.25266521,2526.2,2526.1,1.05]
[1747729640879,14.46529604,2526.2,2526.1,1.05]
[1747729641381,13.91529604,2526.2,2526.1,1.05]
[1747729642549,14.46529604,2526.2,2526.1,1.05]
[1747729644180,28.17460268,2526.2,2526.1,1.05]
[1747729647182,24.01360268,2526.2,2526.1,1.05]
[1747729647361,26.81080251,2526.2,2526.1,1.05]
[1747729647565,16.71249587,2526.2,2526.1,1.05]
[1747729647757,3.95851476,2526.2,2526.1,1.05]
[1747729648283,4.50851476,2526.2,2526.1,1.05]
[1747729648653,3.95851476,2526.2,2526.1,1.05]
[1747729651274,4.50851476,2526.2,2526.1,1.05]
[1747729651592,12.50851476,2526.2,2526.1,1.05]
[1747729651795,15.30571459,2526.2,2526.1,1.05]
[1747729654491,25.26249587,2526.2,2526.1,1.05]
[1747729663633,26.81080251,2526.2,2526.1,1.05]
[1747729666100,30.97180251,2526.2,2526.1,1.05]
[1747729668637,32.52010915,2526.2,2526.1,0.97833324]
[1747729668839,12.51008236,2525.2,2525.1,0.05]
[1747729669049,18.219389,2525.2,2525.1,0.05]
[1747729670340,4.51165121,2524.2,2523.9,17.097]
[1747729670506,6.05995785,2524.2,2523.9,7.808]
[1747729670708,6.05995785,2524.2,2523.1,17.147]
[1747729670709,14.05995785,2524.2,2523.5,7.809]
[1747729670911,15.86210572,2524.2,2523.5,7.809]
[1747729672108,16.26245081,2524.2,2523.1,0.05]
[1747729672308,16.26245081,2524.2,2523.3,7.809]
[1747729673643,17.9459272,2524.2,2523.3,7.809]
[1747729673846,27.90270848,2524.2,2523.3,7.809]
[1747729676816,22.86877758,2524.2,2523.3,7.809]
[1747729679051,21.91843249,2524.2,2523.3,7.809]
[1747729679241,21.91843249,2524.2,2523.8,7.811]
[1747729679443,13.91843249,2524.2,2523.8,7.811]
[1747729682654,14.46843249,2524.2,2523.8,7.811]
[1747729684362,13.91843249,2524.2,2523.8,7.811]
[1747729687563,16.25642783,2524.2,2523.6,7.812]
[1747729687747,27.48821086,2524.2,2523.6,7.812]
[1747729688262,27.48821086,2524.2,2523.5,7.797]
[1747729691162,27.48821086,2524.2,2523.1,0.05]
[1747729691369,27.48821086,2524.2,2523.4,7.798]
[1747729691660,27.48821086,2524.2,2523.1,0.05]
[1747729691860,27.48821086,2524.2,2523.2,7.798]
[1747729692471,31.64921086,2524.2,2523.2,7.798]
[1747729694163,3.9632213,2523.2,2523.1,7.848]
[1747729694364,12.7558532,2523.2,2523.1,7.848]
[1747729694533,12.7558532,2523.2,2523.1,0.05]
[1747729694728,23.21263448,2523.2,2523.1,0.05]
[1747729696130,22.42000258,2523.2,2523.1,0.05]
[1747729709781,23.97500614,2523.2,2523.1,0.05]
[1747729712486,14.42000258,2523.2,2523.1,0.05]
[1747729712812,23.97500614,2523.2,2523.1,0.05]
[1747729713215,23.42500614,2523.2,2523.1,0.05]
[1747729713428,26.75364195,2523.2,2523.1,0.05]
[1747729713775,26.20364195,2523.2,2523.1,0.05]
[1747729714784,26.75364195,2523.2,2523.1,0.05]
[1747729717266,13.87000258,2523.2,2523.1,0.05]
[1747729722383,15.42500614,2523.2,2523.1,0.05]
[1747729727509,13.87000258,2523.2,2523.1,0.05]
[1747729728386,23.97500614,2523.2,2523.1,0.05]
[1747729732116,31.76400614,2523.2,2523.1,0.05]
[1747729732295,35.37542426,2523.2,2523.1,0.05]
[1747729733774,27.58642426,2523.2,2523.1,0.05]
[1747729734238,26.0314207,2523.2,2523.1,0.05]
[1747729734397,19.58642426,2523.2,2523.1,0.05]
[1747729734571,27.58642426,2523.2,2523.1,0.05]
[1747729735272,27.03642426,2523.2,2523.1,0.05]
[1747729735616,19.03642426,2523.2,2523.1,0.05]
[1747729736399,17.4814207,2523.2,2523.1,0.05]
[1747729736603,13.87000258,2523.2,2523.1,0.05]
[1747729738414,15.97500614,2523.2,2523.1,0.05]
[1747729738913,13.87000258,2523.2,2523.1,0.05]
[1747729740616,15.97500614,2523.2,2523.1,0.05]
[1747729741340,3.9632213,2523.2,2523.1,0.05]
[1747729746552,3.9635702,2523.0,2522.9,17.115]
[1747729746754,3.9635702,2523.0,2522.9,24.904]
[1747729746962,3.9635702,2523.0,2522.9,27.3944]
[1747729751059,3.9635702,2523.0,2522.9,27.3794]
[1747729753963,3.9635702,2523.0,2522.9,35.3794]
[1747729756751,3.9635702,2523.0,2522.9,27.3794]
[1747729757293,3.96350159,2523.1,2522.9,27.3794]
[1747729757609,3.96350159,2523.1,2523.0,1.97703123]
[1747729759854,3.96350159,2523.1,2523.0,9.97703123]
[1747729763221,3.96350159,2523.1,2522.9,24.889]
[1747729763413,3.96353547,2523.0,2522.9,24.889]
[1747729763777,3.96353547,2523.0,2522.9,24.888]
[1747729766741,3.96353547,2523.0,2522.9,17.115]
[1747729766943,3.96353547,2523.0,2522.9,24.888]
[1747729768043,3.96353547,2523.0,2522.9,27.3768]
[1747729769234,3.96353547,2523.0,2522.9,24.888]
[1747729773067,3.96353547,2523.0,2522.9,32.888]
[1747729774733,3.96346649,2523.1,2522.9,32.888]
[1747729775445,3.96353547,2523.0,2522.9,32.888]
[1747729776485,3.9633842,2523.1,2522.9,32.888]
[1747729776683,3.96199019,2524.0,2523.0,30.154153]
[1747729776873,3.96319363,2523.3,2523.1,8.0]
[1747729777380,3.9629519,2523.4,2523.1,8.0]
[1747729777555,3.96293443,2523.4,2523.1,8.0]
[1747729777756,3.96280401,2523.5,2523.2,1.12888]
[1747729777956,3.96291367,2523.4,2523.2,1.12888]
[1747729778562,3.96175935,2524.2,2523.2,1.12888]
[1747729778760,3.96281338,2523.5,2523.2,1.12888]
[1747729779304,3.96281338,2523.5,2523.3,5.94]
[1747729779305,3.96301001,2523.4,2523.3,5.94]
[1747729779604,3.96301001,2523.4,2523.3,14.646888]
[1747729781376,3.96301001,2523.4,2523.3,6.646888]
[1747729781377,3.96290718,2523.4,2523.3,6.646888]
[1747729781777,3.96290718,2523.4,2523.3,8.706888]
[1747729781974,3.96334179,2523.2,2523.1,13.94]
[1747729782307,3.96334179,2523.2,2523.1,21.697]
[1747729782491,3.96334179,2523.2,2523.1,7.757]
[1747729789330,3.96432111,2522.5,2522.2,7.757]
[1747729790387,3.96432111,2522.5,2522.3,8.0]
[1747729793192,3.96285954,2523.5,2522.3,8.0]
[1747729793193,3.96357442,2523.0,2522.3,8.0]
[1747729793395,3.96428062,2522.6,2522.3,8.0]
[1747729793624,3.96285954,2523.5,2522.3,8.0]
[1747729793625,3.96432111,2522.5,2522.3,8.0]
[1747729793929,3.96432111,2522.5,2522.4,1.6536803]
[1747729795028,3.96432111,2522.5,2522.4,0.07089118]
[1747729795244,3.96432111,2522.5,2522.4,15.82989118]
[1747729801729,3.96432111,2522.5,2522.4,7.82989118]
[1747729802039,3.96432111,2522.5,2522.4,0.07089118]
[1747729802201,3.96432111,2522.5,2522.4,7.82989118]
[1747729802404,4.75716983,2522.5,2522.4,0.07089118]
[1747729802626,6.31217339,2522.5,2522.4,0.07089118]
[1747729802828,4.75716983,2522.5,2522.4,0.07089118]
[1747729805744,5.30716983,2522.5,2522.4,0.07089118]
[1747729805948,6.86217339,2522.5,2522.4,0.07089118]
[1747729806847,6.86217339,2522.5,2522.4,0.06850888]
[1747729807045,6.31217339,2522.5,2522.4,0.06850888]
[1747729807348,4.51432111,2522.5,2522.4,0.06850888]
[1747729807552,6.06932467,2522.5,2522.4,0.06850888]
[1747729807708,22.42110239,2522.5,2522.4,0.06850888]
[1747729807909,3.96479264,2522.2,2522.1,1.02171685]
[1747729808157,5.3077385,2522.2,2522.1,1.02171685]
[1747729808457,3.96479264,2522.2,2522.1,1.02171685]
[1747729813652,3.96467646,2522.3,2522.1,1.02171685]
[1747729813843,3.96467646,2522.3,2522.2,15.749]
[1747729814056,3.96467646,2522.3,2522.2,17.42607169]
[1747729815022,3.96467646,2522.3,2522.2,1.67707169]
[1747729815256,3.96479264,2522.2,2522.1,1.02171685]
[1747729815454,3.96479264,2522.2,2522.1,8.77071685]
[1747729816936,3.96479264,2522.2,2522.1,1.02171685]
[1747729817456,3.96479264,2522.2,2522.1,8.77071685]
[1747729818976,3.96479264,2522.2,2522.1,1.02171685]
[1747729819277,5.30969087,2522.2,2522.1,1.02171685]
[1747729819649,3.96479264,2522.2,2522.1,1.02171685]
[1747729825959,4.51479264,2522.2,2522.1,1.02171685]
[1747729827275,6.0697962,2522.2,2522.1,1.02171685]
[1747729828331,3.96479264,2522.2,2522.1,1.02171685]
[1747729829769,3.96479264,2522.2,2522.1,8.77171685]
[1747729834178,3.96479264,2522.2,2522.1,9.64888854]
[1747729834566,3.96479264,2522.2,2522.1,8.77171685]
[1747729838988,3.96479264,2522.2,2522.1,16.77171685]
[1747729842517,3.96479264,2522.2,2522.1,24.15671685]
[1747729842815,3.96479264,2522.2,2522.1,19.91569285]
[1747729843811,3.96479264,2522.2,2522.1,20.11539085]
[1747729843976,3.96479264,2522.2,2522.1,22.72132994]
[1747729844712,3.96468727,2522.3,2522.1,22.72132994]
[1747729845012,13.869847,2523.3,2522.1,22.72132994]
[1747729845013,3.96427333,2522.6,2522.2,46.271077]
[1747729845309,3.96381051,2522.9,2522.4,8.0]
[1747729845494,3.96399701,2522.8,2522.6,8.0]
[1747729845814,3.96399701,2522.8,2522.5,30.530853]
[1747729845815,3.96399701,2522.8,2522.7,43.38829214]
[1747729845980,3.96399701,2522.8,2522.7,43.43560134]
[1747729846182,3.96399701,2522.8,2522.7,43.38829214]
[1747729846384,3.96363335,2523.0,2522.8,8.0]
[1747729846605,3.96270223,2523.6,2522.9,26.815846]
[1747729846783,3.96333374,2523.2,2523.0,16.54893909]
[1747729846983,3.96333374,2523.2,2523.1,13.91727]
[1747729847184,3.96333374,2523.2,2523.1,9.67474]
[1747729847514,3.96333374,2523.2,2523.1,4.35474]
[1747729847811,3.96337838,2523.1,2523.0,16.54893909]
[1747729848017,3.96337838,2523.1,2523.0,24.57807609]
[1747729848718,3.96337838,2523.1,2523.0,23.97362209]
[1747729849282,3.96329304,2523.2,2523.0,23.97362209]
[1747729849478,3.96329304,2523.2,2523.1,15.10579014]
[1747729849717,3.96329304,2523.2,2523.1,14.37922172]
[1747729850215,3.96275014,2523.5,2523.1,7.739]
[1747729850390,3.96306424,2523.3,2523.2,8.0]
[1747729852620,3.96306424,2523.3,2523.2,21.324397]
[1747729852825,3.96306424,2523.3,2523.2,21.035247]
[1747729853037,3.96306424,2523.3,2523.2,17.6876667]
[1747729853520,3.96306424,2523.3,2523.2,13.0419247]
[1747729854703,3.96306424,2523.3,2523.2,10.8774247]
[1747729856129,3.96166681,2524.2,2523.2,32.7180087]
[1747729856440,3.96291443,2523.4,2523.2,10.8774247]
[1747729856616,3.96227756,2523.9,2523.4,8.0]
[1747729856794,3.96225075,2523.9,2523.5,17.230082]
[1747729856995,3.9622791,2523.8,2523.7,8.0]
[1747729857322,3.96202904,2524.0,2523.7,8.0]
[1747729857323,3.9620593,2524.0,2523.7,43.899365]
[1747729857628,3.96188793,2524.1,2523.8,22.7266227]
[1747729857799,3.96188793,2524.1,2524.0,8.0]
[1747729858138,3.96188793,2524.1,2524.0,23.734311]
[1747729858303,3.96188793,2524.1,2524.0,23.758799]
[1747729858515,3.96156256,2524.3,2524.0,21.858509]
[1747729858707,3.96166508,2524.2,2524.1,35.63735553]
[1747729859026,3.96134808,2524.4,2524.1,36.16134353]
[1747729859192,3.96134808,2524.4,2524.3,8.0]
[1747729859392,3.96134808,2524.4,2524.3,21.59304]
[1747729859713,3.96116188,2524.6,2524.3,18.75104]
[1747729859913,3.96102352,2524.6,2524.5,8.0]
[1747729860131,3.96102352,2524.6,2524.5,22.667007]
[1747729860293,3.96118043,2524.5,2524.4,1.91401896]
[1747729860489,3.96140612,2524.4,2524.2,8.38914958]
[1747729860806,3.96125126,2524.5,2524.2,8.38914958]
[1747729860992,3.96120985,2524.5,2524.3,22.241685]
[1747729861335,3.96120985,2524.5,2524.3,19.382595]
[1747729861514,3.96120985,2524.5,2524.3,20.050217]
[1747729861715,3.96120985,2524.5,2524.4,2.84393666]
[1747729861894,3.96120985,2524.5,2524.4,12.69473766]
[1747729862089,3.96120985,2524.5,2524.4,12.51263666]
[1747729863325,3.96120985,2524.5,2524.4,7.26197966]
[1747729863527,3.96120985,2524.5,2524.4,4.418043]
[1747729863840,4.01055613,2524.9,2524.4,8.0]
[1747729863841,0.05,2524.9,2524.4,8.0]
[1747729864042,3.96071956,2524.8,2524.4,8.0]
[1747729864203,3.96071956,2524.8,2524.5,13.52891]
[1747729864398,3.96071956,2524.8,2524.7,8.0]
[1747729864739,3.96071956,2524.8,2524.7,37.0476448]
[1747729864906,0.05,2524.9,2524.7,34.6298408]
[1747729865107,0.05,2524.9,2524.8,20.282789]
[1747729866327,0.05,2524.9,2524.8,8.0]
[1747729866328,4.01055289,2524.9,2524.8,8.0]
[1747729866536,4.01055289,2524.9,2524.8,9.00663543]
[1747729866692,0.05,2524.9,2524.8,9.00663543]
[1747729866892,0.05,2524.9,2524.8,29.81012543]
[1747729868107,0.05,2524.9,2524.8,26.21205143]
[1747729868542,0.05,2524.9,2524.8,20.80234543]
[1747729869398,4.01055289,2524.9,2524.8,19.12880443]
[1747729869613,0.05,2524.9,2524.8,22.66663543]
[1747729870491,4.01055289,2524.9,2524.8,22.66663543]
[1747729870948,0.05,2524.9,2524.8,45.87257543]
[1747729871104,0.05,2524.9,2524.8,49.83328518]
[1747729872210,0.05,2525.9,2525.0,0.55]
[1747729872416,0.05,2525.9,2525.2,8.0]
[1747729872417,3.95949378,2525.6,2525.2,8.0]
[1747729872631,3.95949378,2525.6,2525.3,7.722]
[1747729872945,3.95976874,2525.4,2525.3,7.722]
[1747729873156,3.95976874,2525.4,2525.3,8.0]
[1747729873296,3.95976874,2525.4,2524.8,8.0]
[1747729873634,3.96035468,2525.1,2524.9,21.659]
[1747729874218,3.96039603,2525.0,2524.9,21.659]
[1747729874434,3.96039603,2525.0,2524.9,25.5354]
[1747729874738,3.96036926,2525.1,2524.9,25.5354]
[1747729875036,3.96010797,2525.2,2524.9,25.5354]
[1747729875202,3.96010797,2525.2,2525.1,8.0]
[1747729875707,3.96026977,2525.1,2524.9,3.8764]
[1747729875891,3.96026977,2525.1,2525.0,31.28083323]
[1747729876097,3.95979327,2525.4,2525.1,8.0]
[1747729876409,3.96004908,2525.3,2525.1,8.0]
[1747729876607,3.96004908,2525.3,2525.2,18.051821]
[1747729877127,3.95981195,2525.4,2525.2,18.051821]
[1747729877294,3.95975109,2525.5,2525.3,28.3533931]
[1747729877637,3.95976874,2525.4,2525.3,1.8051821]
[1747729877821,3.95969003,2525.5,2525.1,8.0]
[1747729878035,3.95969003,2525.5,2525.3,8.0]
[1747729878220,3.95976874,2525.4,2525.1,8.0]
[1747729878423,3.95976874,2525.4,2525.3,8.0]
[1747729878624,3.95976874,2525.4,2525.3,10.073751]
[1747729878821,3.95976874,2525.4,2525.3,19.8811261]
[1747729879025,3.95976874,2525.4,2525.3,9.8073751]
[1747729879202,3.95976874,2525.4,2525.3,8.0]
[1747729879400,3.95976874,2525.4,2525.3,13.936]
[1747729883942,0.05,2525.9,2525.4,8.0]
[1747729884159,3.95932661,2525.7,2525.6,8.0]
[1747729884314,3.95932661,2525.7,2525.6,33.0309]
[1747729885443,0.05,2525.9,2525.6,33.42948038]
[1747729885740,0.05,2525.9,2525.8,8.0]
[1747729886043,0.05,2525.9,2525.8,25.437968]
[1747729886348,0.05,2525.9,2525.8,29.314368]
[1747729886505,0.05,2525.9,2525.8,30.87082665]
[1747729886831,0.05,2525.9,2525.8,26.911685]
[1747729887615,0.05,2525.9,2525.8,25.943002]
[1747729887934,0.05,2525.9,2525.8,23.163542]
[1747729888714,0.05,2525.9,2525.8,11.8764]
[1747729889043,0.05,2525.9,2525.8,44.698541]
[1747729889617,0.05,2525.9,2525.8,36.590671]
[1747729889817,0.05,2525.9,2525.8,39.33246865]
[1747729890051,0.05,2525.9,2525.8,38.58899965]
[1747729890754,0.05,2525.9,2525.8,34.629858]
[1747729890922,0.05,2525.9,2525.8,38.58899965]
[1747729891248,0.05,2525.9,2525.8,34.629858]
[1747729891566,4.00898491,2525.9,2525.8,17.5294]
[1747729891722,4.00898491,2525.9,2525.8,25.5294]
[1747729893343,3.95929841,2525.7,2525.6,17.49358038]
[1747729893582,3.95929841,2525.7,2525.6,39.14558038]
[1747729894448,3.95929841,2525.7,2525.6,25.49358038]
[1747729894674,3.95929841,2525.7,2525.6,33.21158038]
[1747729894973,3.95929841,2525.7,2525.6,37.11394326]
[1747729896375,3.95929841,2525.7,2525.6,39.14658038]
[1747729896581,3.95929841,2525.7,2525.6,25.095]
[1747729896757,3.95929841,2525.7,2525.6,38.748]
[1747729897485,3.95929841,2525.7,2525.6,25.095]
[1747729897687,3.95929841,2525.7,2525.6,32.814]
[1747729898998,3.95929841,2525.7,2525.6,33.20440309]
[1747729899292,3.95929841,2525.7,2525.6,24.804]
[1747729902028,4.00907726,2525.9,2525.6,35.2844]
[1747729902165,3.95919541,2525.8,2525.7,8.0]
[1747729903105,4.00905669,2525.9,2525.7,8.0]
[1747729903304,0.05,2525.9,2525.8,7.8279]
[1747729903507,0.05,2525.9,2525.8,9.81493123]
[1747729903726,4.00898491,2525.9,2525.8,1.98703123]
[1747729904739,3.95929841,2525.7,2525.6,25.095]
[1747729904914,3.95929841,2525.7,2525.6,24.804]
[1747729905489,0.05,2525.9,2525.7,8.0]
[1747729905720,0.05,2525.9,2525.8,14.306181]
[1747729906117,0.05,2525.9,2525.8,4.54507]
[1747729906427,0.05,2525.9,2525.8,8.279977]
[1747729906607,4.00898491,2525.9,2525.8,8.279977]
[1747729907206,4.00898491,2525.9,2525.8,3.734907]
[1747729907597,4.00898491,2525.9,2525.8,13.934]
[1747729909029,3.95929841,2525.7,2525.6,17.095]
[1747729909210,3.95929841,2525.7,2525.6,32.804]
[1747729909530,3.95929841,2525.7,2525.6,17.095]
[1747729909729,3.95929841,2525.7,2525.6,24.804]
[1747729911831,5.15204446,2525.7,2525.6,24.804]
[1747729912352,3.95929841,2525.7,2525.6,24.804]
[1747729913653,3.95917357,2525.8,2525.6,24.804]
[1747729913845,0.05,2525.9,2525.6,24.804]
[1747729913846,3.95929841,2525.7,2525.6,32.804]
[1747729914352,3.95929196,2525.8,2525.7,8.0]
[1747729914527,3.95929196,2525.8,2525.7,27.568128]
[1747729914850,3.95929196,2525.8,2525.7,25.21396288]
[1747729915051,3.95929196,2525.8,2525.7,17.83736288]
[1747729915549,3.95929196,2525.8,2525.7,17.54736288]
[1747729919457,3.95929196,2525.8,2525.7,11.61236288]
[1747729919765,3.95929196,2525.8,2525.7,17.54736288]
[1747729920338,3.95929196,2525.8,2525.6,17.095]
[1747729920339,3.95929841,2525.7,2525.6,17.095]
[1747729920542,3.95929841,2525.7,2525.6,24.804]
[1747729921237,3.95929841,2525.7,2525.6,17.095]
[1747729921444,3.95929841,2525.7,2525.6,24.804]
[1747729923633,3.95929841,2525.7,2525.6,35.2844]
[1747729924335,3.95929841,2525.7,2525.6,27.2844]
[1747729924673,3.95929841,2525.7,2525.6,24.805]
[1747729931537,3.95929841,2525.7,2525.6,32.805]
[1747729932048,3.95916499,2525.8,2525.6,32.805]
[1747729932250,4.00905168,2525.9,2525.7,26.70149]
[1747729932446,4.00905168,2525.9,2525.8,3.90236288]
[1747729935280,4.00905168,2525.9,2525.8,9.83636288]
[1747729937271,0.05,2525.9,2525.8,9.83636288]
[1747729937485,4.00898491,2525.9,2525.8,9.83636288]
[1747729937789,0.05,2525.9,2525.8,9.83636288]
[1747729937944,0.05,2525.9,2525.8,28.84653188]
[1747729938654,0.05,2525.9,2525.8,28.57192804]
[1747729939054,0.05,2525.9,2525.8,25.34337637]
[1747729939450,0.05,2525.9,2525.8,25.34287137]
[1747729939776,0.05,2525.9,2525.8,25.34241736]
[1747729939942,0.05,2525.9,2525.8,25.34200918]
[1747729940383,0.05,2525.9,2525.8,25.34164218]
[1747729940580,0.05,2525.9,2525.8,25.34131221]
[1747729941280,0.05,2525.9,2525.8,17.83930221]
[1747729941486,0.05,2525.9,2525.8,36.83244121]
[1747729941857,0.05,2525.9,2525.8,40.79158286]
[1747729942069,9.5544,2526.0,2525.9,11.95898491]
[1747729942269,9.5544,2526.0,2525.9,51.62167026]
[1747729942483,9.5544,2526.0,2525.9,15.57488157]
[1747729942795,13.51322818,2526.0,2525.9,0.56800757]
[1747729942984,3.95882818,2526.0,2525.7,6.13]
[1747729943171,3.9585845,2526.2,2525.7,6.13]
[1747729943496,3.95871611,2526.1,2525.8,3.50899616]
[1747729944094,3.95837541,2526.3,2525.9,9.89293139]
[1747729944307,3.95828794,2526.4,2525.9,5.934]
[1747729944460,3.95828794,2526.4,2525.9,9.89288469]
[1747729944796,3.95828794,2526.4,2526.0,3.95881807]
[1747729945095,3.95757479,2526.8,2526.0,3.95881807]
[1747729945096,3.95835807,2526.3,2526.2,8.0]
[1747729946384,3.9581138,2526.5,2526.2,8.0]
[1747729946562,3.95761988,2526.8,2526.2,11.9584251]
[1747729946763,3.95791496,2526.6,2526.2,8.0]
[1747729947016,3.95804686,2526.5,2526.2,8.0]
[1747729947178,3.95791936,2526.6,2526.3,2.00509348]
[1747729948789,3.95804632,2526.5,2526.3,2.00509348]
[1747729949105,3.95778907,2526.7,2526.3,2.00509348]
[1747729949270,3.95790124,2526.6,2526.3,2.00509348]
[1747729951303,3.95779685,2526.7,2526.3,5.96344993]
[1747729951491,4.00743689,2526.9,2526.4,9.39634499]
[1747729951697,3.9580102,2526.6,2526.4,9.39634499]
[1747729951891,3.95801916,2526.6,2526.4,1.39634499]
[1747729952294,3.95779269,2526.7,2526.4,1.39634499]
[1747729952494,3.95779269,2526.7,2526.4,9.39634499]
[1747729952698,3.95779269,2526.7,2526.5,1.33546851]
[1747729952998,3.95779269,2526.7,2526.6,24.785]
[1747729953316,3.95779269,2526.7,2526.6,25.1721085]
[1747729954414,3.95779269,2526.7,2526.6,24.785]
[1747729954620,3.95779269,2526.7,2526.6,32.785]
[1747729964548,3.95759344,2526.8,2526.7,8.0]
[1747729965655,0.05,2526.9,2526.7,8.0]
[1747729965827,3.95757479,2526.8,2526.7,13.932]
[1747729966028,3.95757479,2526.8,2526.7,15.688]
[1747729966230,3.95757479,2526.8,2526.7,21.62]
[1747729969374,4.00751464,2526.9,2526.7,21.62]
[1747729969688,3.95757479,2526.8,2526.7,21.62]
[1747729970038,4.00745998,2526.9,2526.7,21.62]
[1747729970237,3.95757479,2526.8,2526.7,21.62]
[1747729970770,4.00749679,2526.9,2526.7,21.62]
[1747729970971,0.05,2526.9,2526.7,21.62]
[1747729971147,0.05,2526.9,2526.8,1.25802359]
[1747729971567,4.00741818,2526.9,2526.8,1.25802359]
[1747729973066,4.00741818,2526.9,2526.8,0.37830607]
[1747729976195,3.91776169,2526.9,2526.8,0.37830607]
[1747729976409,3.91776169,2526.9,2526.8,4.28066895]
[1747729976610,3.91776169,2526.9,2526.8,0.37830607]
[1747729977179,3.95647996,2527.5,2526.8,0.37830607]
[1747729977180,3.95486025,2528.6,2526.8,0.37830607]
[1747729977502,3.95741818,2526.9,2526.8,8.37830607]
[1747729977704,3.95741818,2526.9,2526.8,8.0]
[1747729979102,3.95741818,2526.9,2526.8,8.37786939]
[1747729980377,3.95616568,2527.7,2526.8,8.85017932]
[1747729980582,3.95665405,2527.4,2526.8,8.85017932]
[1747729980782,3.95741689,2527.0,2526.8,8.85017932]
[1747729981300,3.95616568,2527.7,2526.8,8.85017932]
[1747729981604,3.95738772,2527.0,2526.8,8.85017932]
[1747729981807,3.95738772,2527.0,2526.9,0.37786939]
[1747729984673,3.95738772,2527.0,2526.9,8.06486939]
[1747729988412,3.95738772,2527.0,2526.9,16.06486939]
[1747729989784,3.95738772,2527.0,2526.9,8.06486939]
[1747729999344,4.67709588,2527.0,2526.9,8.05386939]
[1747729999842,4.67709588,2527.0,2526.9,7.676]
[1747730000698,3.95773142,2526.7,2526.6,0.47230993]
[1747730001038,3.95820139,2526.4,2526.3,7.677]
[1747730001205,5.14561782,2526.4,2526.3,7.677]
[1747730001902,3.95820139,2526.4,2526.3,7.677]
[1747730004767,3.95820139,2526.4,2525.8,17.086]
[1747730004768,3.95898491,2525.9,2525.8,25.086]
[1747730005073,3.95898491,2525.9,2525.8,32.763]
[1747730005483,3.95898491,2525.9,2525.8,24.763]
[1747730012817,3.95898491,2525.9,2525.8,24.765]
[1747730018707,3.95898491,2525.9,2525.8,17.086]
[1747730018937,4.75076928,2525.9,2525.8,24.765]
[1747730021341,3.95898491,2525.9,2525.8,24.765]
[1747730027865,3.95898491,2525.9,2525.8,25.14186039]
[1747730029830,3.95898491,2525.9,2525.8,25.13086039]
[1747730033295,3.95898491,2525.9,2525.8,17.46286039]
[1747730033466,3.95898491,2525.9,2525.8,25.13086039]
[1747730035496,3.95898491,2525.9,2525.8,24.754]
[1747730036009,3.95898491,2525.9,2525.8,17.086]
[1747730036291,4.75076928,2525.9,2525.8,24.754]
[1747730036899,3.95898491,2525.9,2525.8,24.754]
[1747730040191,3.95898491,2525.9,2525.8,25.13163172]
[1747730041114,3.95880319,2526.1,2525.8,33.13163172]
[1747730041669,3.95880319,2526.1,2525.9,0.84994165]
[1747730041871,3.95880319,2526.1,2526.0,11.36039416]
[1747730042905,3.95880319,2526.1,2526.0,19.40602588]
[1747730043232,3.95880319,2526.1,2526.0,8.04563172]
[1747730044529,3.95898491,2525.9,2525.8,17.086]
[1747730044733,3.95898491,2525.9,2525.8,24.754]
[1747730045628,3.95898491,2525.9,2525.8,25.13160678]
[1747730047030,3.95898491,2525.9,2525.8,24.754]
[1747730054140,3.95898491,2525.9,2525.8,25.13243593]
[1747730054328,3.95898491,2525.9,2525.8,27.64567952]
[1747730057635,3.9586475,2526.2,2525.9,8.0]
[1747730057834,3.95819232,2526.5,2525.9,8.0]
[1747730058160,3.95874122,2526.1,2525.9,8.0]
[1747730058358,3.95870116,2526.1,2526.0,7.61652729]
[1747730059638,3.95844974,2526.3,2526.1,8.0]
[1747730059839,3.957252,2527.1,2526.3,8.0]
[1747730060034,3.95775194,2526.7,2526.5,8.0]
[1747730060235,3.95647873,2527.5,2526.5,8.0]
[1747730060575,3.95762033,2526.8,2526.5,8.60158599]
[1747730060953,3.95732731,2527.0,2526.5,8.60158599]
[1747730061277,3.95756875,2526.9,2526.5,8.60158599]
[1747730062587,3.95765145,2526.8,2526.5,8.60158599]
[1747730062751,3.95765145,2526.8,2526.6,2.2193586]
[1747730063184,3.95765145,2526.8,2526.7,0.37843593]
[1747730063388,3.95756875,2526.9,2526.7,0.37843593]
[1747730063693,3.95741818,2526.9,2526.8,25.09]
[1747730064687,3.95741818,2526.9,2526.8,25.46843593]